fUST/lending_fUST_20241224
["ID","MTS","AMOUNT","RATE_DAILY","PERIOD"]
[346487467,1735006240443,-508.0,0.00013091,2]
[346487468,1735006240453,-500.0,0.00013091,2]
[346487469,1735006240462,-500.0,0.00013091,2]
[346487470,1735006240474,-151.0,0.000132,2]
[346487471,1735006240484,-151.0,0.000132,2]
[346487472,1735006240495,-151.0,0.000133,2]
[346487473,1735006240504,-151.0,0.000133,2]
[346487474,1735006240514,-151.0,0.000133,2]
[346487475,1735006240524,-151.0,0.000133,2]
[346487476,1735006240534,-508.0,0.00013365,2]
[346487477,1735006240545,-500.0,0.00013365,2]
[346487478,1735006240555,-757.21478204,0.00013365,2]
[346487479,1735006240565,-151.0,0.000134,2]
[346487480,1735006240575,-151.0,0.000134,2]
[346487481,1735006240584,-151.0,0.000134,2]
[346487482,1735006240595,-151.0,0.000135,2]
[346487483,1735006240605,-151.0,0.000135,2]
[346487484,1735006240615,-151.0,0.000135,2]
[346487485,1735006240624,-823.0,0.00013513,2]
[346487486,1735006240634,-165.03505991,0.00013598,2]
[346487487,1735006240644,-666.0,0.00013598,2]
[346487488,1735006240654,-260.0,0.000136,2]
[346487489,1735006240663,-260.0,0.000136,3]
[346487490,1735006240673,-265.52706065,0.000136,3]
[346487491,1735006240683,-2824.85,0.000136,2]
[346487492,1735006240693,-336.0,0.000136,2]
[346487493,1735006240703,-151.0,0.000136,2]
[346487494,1735006240713,-151.0,0.000136,2]
[346487495,1735006240725,-2000.0,0.000136,2]
[346487496,1735006240734,-151.0,0.000136,2]
[346487497,1735006240744,-151.0,0.000136,2]
[346487498,1735006240753,-595.0,0.000136,4]
[346487499,1735006240763,-151.0,0.000136,2]
[346487500,1735006240772,-151.0,0.000136,2]
[346487501,1735006240781,-508.0,0.00013639,2]
[346487502,1735006240791,-500.0,0.00013639,2]
[346487503,1735006240801,-501.03476633,0.00013673,2]
[346487504,1735006240813,-500.0,0.00013673,2]
[346487505,1735006240823,-576.24667082,0.00013673,2]
[346487506,1735006240833,-500.0,0.00013673,2]
[346487507,1735006240842,-501.57270642,0.00013673,2]
[346487509,1735006240852,-500.30917259,0.00013673,2]
[346487510,1735006240861,-500.0,0.00013673,2]
[346487511,1735006240871,-500.29152668,0.00013673,2]
[346487512,1735006240880,-500.0,0.00013673,2]
[346487513,1735006240890,-500.0,0.00013673,2]
[346487514,1735006240900,-500.0,0.00013673,2]
[346487515,1735006240909,-500.0,0.00013673,2]
[346487516,1735006240918,-500.0,0.00013673,2]
[346487517,1735006240928,-500.0,0.00013673,2]
[346487518,1735006240937,-446.75085976,0.00013673,2]
[346487519,1735006241071,-500.0,0.00013673,2]
[346487520,1735006241081,-500.0,0.00013673,2]
[346487521,1735006241094,-203.29813536,0.00013673,2]
[346487522,1735006241103,-263.00289093,0.00013673,2]
[346487523,1735006241116,-500.0,0.00013673,2]
[346487524,1735006241126,-160.38137191,0.00013673,2]
[346487525,1735006241135,-219.48871759,0.00013673,2]
[346487526,1735006241144,-417.37789285,0.00013673,2]
[346487527,1735006241153,-415.48503002,0.00013673,2]
[346487528,1735006241164,-630.61263786,0.00013673,2]
[346487529,1735006241173,-500.0,0.00013673,2]
[346487530,1735006241183,-151.17873273,0.00013673,2]
[346487531,1735006241192,-500.19860492,0.00013673,2]
[346487532,1735006241201,-500.0,0.00013673,2]
[346487533,1735006241210,-500.0,0.00013673,2]
[346487534,1735006241221,-500.0,0.00013673,2]
[346487535,1735006241230,-155.39648947,0.00013673,2]
[346487536,1735006241239,-614.51869288,0.00013673,2]
[346487537,1735006241250,-310.99315585,0.00013673,2]
[346487538,1735006241259,-500.66829513,0.00013673,2]
[346487539,1735006241268,-502.10049433,0.00013673,2]
[346487540,1735006241278,-502.47255643,0.00013673,2]
[346487541,1735006241287,-425.72650831,0.00013673,2]
[346487542,1735006241296,-500.0,0.00013673,2]
[346487543,1735006241305,-501.49234491,0.00013673,2]
[346487544,1735006241315,-177.26634975,0.00013673,2]
[346487545,1735006241324,-500.0,0.00013673,2]
[346487546,1735006241333,-152.05261004,0.00013673,2]
[346487547,1735006241342,-500.0,0.00013673,2]
[346487548,1735006241351,-160.91940392,0.00013673,2]
[346487549,1735006241361,-411.50838474,0.00013673,2]
[346487550,1735006241370,-500.0,0.00013673,2]
[346487551,1735006241380,-500.0,0.00013673,2]
[346487552,1735006241389,-500.0,0.00013673,2]
[346487553,1735006241399,-509.12,0.00013698,2]
[346487554,1735006241408,-19104.33445893,0.00013698,2]
[346487555,1735006241417,-299.89245096,0.00013698,2]
[346487556,1735006241432,-200.10754904,0.00013698,2]
[346487557,1735006241441,-500.0,0.00013698,2]
[346487558,1735006241450,-500.0,0.00013698,2]
[346487559,1735006241459,-494.34285816,0.00013698,2]
[346487560,1735006241470,-553.42120423,0.00013698,2]
[346487561,1735006241479,-584.22392784,0.00013698,2]
[346487562,1735006241488,-500.0,0.00013698,2]
[346487563,1735006241497,-500.0,0.00013698,2]
[346487564,1735006241507,-557.57215903,0.00013698,2]
[346487565,1735006241515,-500.0,0.00013698,2]
[346487566,1735006241525,-500.0,0.00013698,2]
[346487567,1735006241535,-500.0,0.00013698,2]
[346487568,1735006241545,-500.0,0.00013698,2]
[346487569,1735006241554,-500.0,0.00013698,2]
[346487570,1735006241564,-500.0,0.00013698,2]
[346487571,1735006241574,-500.0,0.00013698,2]
[346487572,1735006241583,-500.0,0.00013698,2]
[346487573,1735006241593,-500.0,0.00013698,2]
[346487574,1735006241602,-502.85608939,0.00013698,2]
[346487575,1735006241612,-500.0,0.00013698,2]
[346487576,1735006241621,-500.0,0.00013698,2]
[346487577,1735006241630,-500.0,0.00013698,2]
[346487578,1735006241640,-500.0,0.00013698,2]
[346487579,1735006241649,-500.0,0.00013698,2]
[346487580,1735006241658,-500.0,0.00013698,2]
[346487581,1735006241667,-500.0,0.00013698,2]
[346487582,1735006241676,-500.0,0.00013698,2]
[346487583,1735006241686,-500.0,0.00013698,2]
[346487584,1735006241695,-550.05807237,0.00013698,2]
[346487585,1735006241704,-14.78269181,0.00013698,2]
[346487586,1735006241720,-486.30013202,0.00013698,2]
[346487587,1735006241728,-197.99255615,0.00013698,2]
[346487588,1735006241739,-302.00744385,0.00013698,2]
[346487589,1735006241748,-500.0,0.00013698,2]
[346487590,1735006241757,-292.6626202,0.00013698,2]
[346487591,1735006241767,-500.0,0.00013698,2]
[346487592,1735006241776,-500.0,0.00013698,2]
[346487593,1735006241786,-500.0,0.00013698,2]
[346487594,1735006241795,-315.57425791,0.00013698,2]
[346487595,1735006241809,-184.42574209,0.00013698,2]
[346487596,1735006241818,-500.0,0.00013698,2]
[346487597,1735006241827,-500.0,0.00013698,2]
[346487598,1735006241837,-500.0,0.00013698,2]
[346487599,1735006241846,-500.0,0.00013698,2]
[346487600,1735006241855,-500.0,0.00013698,2]
[346487601,1735006241864,-500.0,0.00013698,2]
[346487602,1735006241873,-500.0,0.00013698,2]
[346487603,1735006241882,-500.0,0.00013698,2]
[346487604,1735006241892,-500.0,0.00013698,2]
[346487605,1735006241901,-500.0,0.00013698,2]
[346487606,1735006241912,-500.0,0.00013698,2]
[346487607,1735006241921,-443.35328535,0.00013698,2]
[346487608,1735006241930,-500.0,0.00013698,2]
[346487609,1735006241939,-500.0,0.00013698,2]
[346487610,1735006241948,-501.7852892,0.00013698,2]
[346487611,1735006241957,-500.6850025,0.00013698,2]
[346487612,1735006241966,-500.0,0.00013698,2]
[346487613,1735006241975,-500.0,0.00013698,2]
[346487614,1735006241984,-500.0,0.00013698,2]
[346487615,1735006241994,-500.0,0.00013698,2]
[346487616,1735006242003,-500.66135085,0.00013698,2]
[346487617,1735006242012,-500.87585413,0.00013698,2]
[346487618,1735006242021,-747.52,0.00013698,2]
[346487619,1735006242030,-500.0,0.00013698,2]
[346487620,1735006242039,-67.23347595,0.00013698,2]
[346487621,1735006242607,-432.76652405,0.00013698,2]
[346487622,1735006242617,-500.0,0.00013698,2]
[346487623,1735006242626,-112.97619541,0.00013698,2]
[346487624,1735006242637,-387.02380459,0.00013698,2]
[346487625,1735006242646,-210.9294319,0.00013698,2]
[346487650,1735006243989,-289.0705681,0.00013698,2]
[346487652,1735006243998,-500.0,0.00013698,2]
[346487654,1735006244008,-500.0,0.00013698,2]
[346487656,1735006244017,-144.4364319,0.00013698,2]
[346487699,1735006250637,30000.0,0.000207,60]
[346487700,1735006269027,24546.669787,0.000207,60]
[346487701,1735006339151,235.2424736,9.959e-05,2]
[346487704,1735006870670,277.579262,9.1e-05,2]
[346487705,1735006890367,16162.0,0.00019,30]
[346487709,1735007212274,100000.0,0.00019,30]
[346487712,1735007246428,5541.13463558,0.00022,120]
[346487713,1735007286258,150.0,9.999e-05,2]
[346487714,1735007301584,150.0,9.999e-05,2]
[346487715,1735007317419,150.0,9.999e-05,2]
[346487833,1735007433507,-150.0,0.000101,2]
[346487835,1735007433517,-1342.95065742,0.00011,2]
[346487837,1735007433527,-932.198837,0.00011009,2]
[346487839,1735007433540,-410.75182038,0.00011009,2]
[346487841,1735007433549,-1342.95065738,0.00011018,2]
[346487843,1735007433559,-1342.95065738,0.00011028,2]
[346487845,1735007433569,-1342.95065738,0.00011037,2]
[346487847,1735007433579,-1342.95065738,0.00011046,2]
[346487849,1735007433589,-150.0,0.000111,2]
[346487851,1735007433600,-302.854248,0.00011247,2]
[346487853,1735007433610,-300.0,0.00011395,2]
[346487855,1735007433619,-35.60336081,0.00011396,2]
[346488353,1735007438963,-220.85663919,0.00011396,2]
[346488355,1735007438973,-556.52,0.00011396,2]
[346488357,1735007438983,-364.32677738,0.00011396,2]
[346488372,1735007439117,-1789.36522262,0.00011396,2]
[346488374,1735007439127,-2358.0,0.00011396,2]
[346488376,1735007439136,-194.42585979,0.00011456,2]
[346488378,1735007439145,-5711.86559807,0.00011556,2]
[346488380,1735007439157,-19188.13440193,0.00011556,2]
[346488382,1735007439166,-3935.070339,0.00012067,2]
[346488384,1735007439175,-420.0,0.00012534,2]
[346488386,1735007439184,-182.15154839,0.00012627,2]
[346488388,1735007439193,-390.74,0.00012627,2]
[346488390,1735007439203,-1150.4784397,0.000128,2]
[346488391,1735007439212,-186.9589658,0.00012927,2]
[346488392,1735007439222,-461.441,0.0001302,2]
[346488393,1735007439233,-152.0,0.00013183,2]
[346488394,1735007439242,-1298.11549371,0.00013329,2]
[346488395,1735007439251,-352.2473484,0.00013425,2]
[346488396,1735007439260,-352.2473484,0.00013425,2]
[346488397,1735007439269,-10572.50032589,0.00013444,2]
[346488398,1735007439278,-238.9946559,0.00013561,2]
[346488399,1735007439288,-192.0,0.00013578,2]
[346488400,1735007439297,-666.0,0.00013598,2]
[346488401,1735007439306,-2542.53,0.000136,2]
[346488402,1735007439316,-2000.0,0.000136,2]
[346488403,1735007439325,-565.0,0.000136,4]
[346488404,1735007439334,-651.8958494,0.00013672,2]
[346488405,1735007439343,-307.00181253,0.00013672,2]
[346488406,1735007439352,-500.0,0.00013672,2]
[346488407,1735007439361,-180.23908222,0.00013672,2]
[346488408,1735007439371,-500.0,0.00013672,2]
[346488409,1735007439380,-500.0,0.00013672,2]
[346488410,1735007439389,-500.0,0.00013672,2]
[346488411,1735007439399,-500.0,0.00013672,2]
[346488412,1735007439412,-500.0,0.00013672,2]
[346488413,1735007439421,-500.0,0.00013672,2]
[346488414,1735007439430,-500.0,0.00013672,2]
[346488415,1735007439439,-500.0,0.00013672,2]
[346488416,1735007439449,-428.88333281,0.00013672,2]
[346488417,1735007439458,-500.0,0.00013672,2]
[346488418,1735007439467,-500.0,0.00013672,2]
[346488419,1735007439477,-500.0,0.00013672,2]
[346488420,1735007439486,-500.0,0.00013672,2]
[346488421,1735007439495,-189.92811699,0.00013672,2]
[346488422,1735007439505,-500.0,0.00013672,2]
[346488423,1735007439514,-500.0,0.00013672,2]
[346488424,1735007439523,-500.0,0.00013672,2]
[346488425,1735007439532,-500.0,0.00013672,2]
[346488426,1735007439542,-500.0,0.00013672,2]
[346488427,1735007439551,-500.0,0.00013672,2]
[346488428,1735007439559,-500.0,0.00013672,2]
[346488430,1735007439702,-500.0,0.00013672,2]
[346488431,1735007439725,-500.0,0.00013672,2]
[346488432,1735007439735,-500.0,0.00013672,2]
[346488433,1735007439744,-500.0,0.00013672,2]
[346488434,1735007439752,-500.0,0.00013672,2]
[346488435,1735007439762,-500.0,0.00013672,2]
[346488436,1735007439771,-500.0,0.00013672,2]
[346488437,1735007439780,-500.0,0.00013672,2]
[346488438,1735007439790,-500.0,0.00013672,2]
[346488439,1735007439799,-500.0,0.00013672,2]
[346488440,1735007439808,-500.0,0.00013672,2]
[346488441,1735007439818,-500.0,0.00013672,2]
[346488442,1735007439827,-500.0,0.00013673,2]
[346488443,1735007439836,-529.18330896,0.00013673,2]
[346488444,1735007439845,-500.0,0.00013673,2]
[346488445,1735007439855,-500.0,0.00013673,2]
[346488446,1735007439864,-500.0,0.00013673,2]
[346488447,1735007439873,-500.0,0.00013673,2]
[346488448,1735007439882,-500.0,0.00013673,2]
[346488449,1735007439891,-500.0,0.00013673,2]
[346488450,1735007439901,-500.0,0.00013673,2]
[346488451,1735007439910,-500.0,0.00013673,2]
[346488452,1735007439920,-500.0,0.00013673,2]
[346488453,1735007439929,-500.0,0.00013673,2]
[346488454,1735007439938,-213.7342547,0.00013697,2]
[346488455,1735007439948,-337.2074523,0.00013697,2]
[346488456,1735007439957,-27399.70430397,0.00013698,2]
[346488457,1735007439967,-154.74784487,0.00013698,2]
[346488458,1735007439978,-500.0,0.00013698,2]
[346488459,1735007439988,-500.0,0.00013698,2]
[346488460,1735007439997,-502.43466625,0.00013698,2]
[346488461,1735007440007,-514.72353856,0.00013698,2]
[346488462,1735007440016,-510.25252442,0.00013698,2]
[346488463,1735007440025,-500.0,0.00013698,2]
[346488464,1735007440035,-500.0,0.00013698,2]
[346488465,1735007440044,-500.0,0.00013698,2]
[346488466,1735007440053,-500.0,0.00013698,2]
[346488467,1735007440063,-500.0,0.00013698,2]
[346488468,1735007440072,-500.0,0.00013698,2]
[346488469,1735007440081,-500.0,0.00013698,2]
[346488470,1735007440090,-500.0,0.00013698,2]
[346488471,1735007440099,-500.0,0.00013698,2]
[346488472,1735007440108,-500.0,0.00013698,2]
[346488473,1735007440117,-500.0,0.00013698,2]
[346488474,1735007440126,-500.0,0.00013698,2]
[346488475,1735007440136,-500.0,0.00013698,2]
[346488476,1735007440146,-500.0,0.00013698,2]
[346488477,1735007440155,-500.0,0.00013698,2]
[346488478,1735007440164,-500.0,0.00013698,2]
[346488479,1735007440173,-559.14,0.00013698,2]
[346488480,1735007440183,-507.55455487,0.00013698,2]
[346488481,1735007440192,-500.0,0.00013698,2]
[346488482,1735007440201,-448.3300117,0.00013698,2]
[346488483,1735007440210,-500.0,0.00013698,2]
[346488484,1735007440220,-500.0,0.00013698,2]
[346488485,1735007440232,-500.0,0.00013698,2]
[346488486,1735007440241,-500.0,0.00013698,2]
[346488487,1735007440250,-500.0,0.00013698,2]
[346488488,1735007440260,-500.0,0.00013698,2]
[346488489,1735007440269,-500.0,0.00013698,2]
[346488490,1735007440279,-500.0,0.00013698,2]
[346488491,1735007440289,-500.0,0.00013698,2]
[346488492,1735007440298,-500.0,0.00013698,2]
[346488493,1735007440308,-787.99,0.00013698,2]
[346488494,1735007440317,-500.0,0.00013698,2]
[346488495,1735007440326,-500.0,0.00013698,2]
[346488496,1735007440335,-500.76066366,0.00013698,2]
[346488497,1735007440344,-500.0,0.00013698,2]
[346488498,1735007440354,-500.0,0.00013698,2]
[346488499,1735007440363,-500.0,0.00013698,2]
[346488500,1735007440372,-500.0,0.00013698,2]
[346488501,1735007440381,-500.0,0.00013698,2]
[346488502,1735007440391,-500.0,0.00013698,2]
[346488503,1735007440403,-500.0,0.00013698,2]
[346488504,1735007440412,-500.0,0.00013698,2]
[346488505,1735007440421,-500.0,0.00013698,2]
[346488506,1735007440430,-500.0,0.00013698,2]
[346488507,1735007440439,-500.0,0.00013698,2]
[346488508,1735007440450,-500.0,0.00013698,2]
[346488509,1735007440459,-500.0,0.00013698,2]
[346488510,1735007440468,-512.28094617,0.00013698,2]
[346488511,1735007440479,-500.0,0.00013698,2]
[346488512,1735007440489,-500.0,0.00013698,2]
[346488513,1735007440499,-500.0,0.00013698,2]
[346488514,1735007440508,-500.0,0.00013698,2]
[346488515,1735007440518,-500.0,0.00013698,2]
[346488516,1735007440527,-500.0,0.00013698,2]
[346488517,1735007440536,-500.0,0.00013698,2]
[346488518,1735007440546,-500.0,0.00013698,2]
[346488519,1735007440555,-500.0,0.00013698,2]
[346488520,1735007440564,-500.0,0.00013698,2]
[346488521,1735007440573,-500.0,0.00013698,2]
[346488522,1735007440582,-500.0,0.00013698,2]
[346488523,1735007440592,-506.09118732,0.00013698,2]
[346488524,1735007440602,-500.0,0.00013698,2]
[346488525,1735007440611,-500.0,0.00013698,2]
[346488526,1735007440620,-500.0,0.00013698,2]
[346488527,1735007440630,-500.0,0.00013698,2]
[346488528,1735007440639,-500.0,0.00013698,2]
[346488529,1735007440648,-500.0,0.00013698,2]
[346488530,1735007440658,-503.17234756,0.00013698,2]
[346488531,1735007440668,-500.0,0.00013698,2]
[346488532,1735007440678,-500.0,0.00013698,2]
[346488533,1735007440687,-500.0,0.00013698,2]
[346488534,1735007440696,-500.0,0.00013698,2]
[346488535,1735007440705,-500.0,0.00013698,2]
[346488536,1735007440715,-500.0,0.00013698,2]
[346488537,1735007440725,-500.0,0.00013698,2]
[346488538,1735007440735,-500.0,0.00013698,2]
[346488539,1735007440745,-500.0,0.00013698,2]
[346488540,1735007440754,-500.0,0.00013698,2]
[346488541,1735007440763,-500.0,0.00013698,2]
[346488542,1735007440773,-500.0,0.00013698,2]
[346488543,1735007440782,-500.0,0.00013698,2]
[346488544,1735007440792,-500.0,0.00013698,2]
[346488545,1735007440802,-500.0,0.00013698,2]
[346488546,1735007440811,-504.01474546,0.00013698,2]
[346488547,1735007440820,-500.0,0.00013698,2]
[346488548,1735007440829,-500.0,0.00013698,2]
[346488549,1735007440838,-500.0,0.00013698,2]
[346488550,1735007440847,-500.0,0.00013698,2]
[346488551,1735007440857,-500.0,0.00013698,2]
[346488552,1735007440866,-500.0,0.00013698,2]
[346488553,1735007440876,-500.0,0.00013698,2]
[346488554,1735007440885,-501.95067772,0.00013698,2]
[346488555,1735007440896,-1094.71,0.00013698,2]
[346488556,1735007440906,-500.0,0.00013698,2]
[346488557,1735007440915,-500.0,0.00013698,2]
[346488558,1735007440924,-500.0,0.00013698,2]
[346488559,1735007440933,-504.76000605,0.00013698,2]
[346488560,1735007440943,-500.0,0.00013698,2]
[346488561,1735007440952,-500.0,0.00013698,2]
[346488562,1735007440961,-500.0,0.00013698,2]
[346488563,1735007440970,-500.0,0.00013698,2]
[346488564,1735007440983,-500.0,0.00013698,2]
[346488565,1735007440992,-500.0,0.00013698,2]
[346488567,1735007441002,-500.0,0.00013698,2]
[346488568,1735007441011,-500.0,0.00013698,2]
[346488569,1735007441021,-500.0,0.00013698,2]
[346488570,1735007441030,-500.0,0.00013698,2]
[346488571,1735007441040,-500.0,0.00013698,2]
[346488572,1735007441050,-3345.48,0.00013698,2]
[346488574,1735007441059,-3345.48,0.00013698,2]
[346488576,1735007441068,-3345.48,0.00013698,2]
[346488578,1735007441078,-3345.48,0.00013698,2]
[346488580,1735007441086,-3345.48,0.00013698,2]
[346488582,1735007441096,-3345.48,0.00013698,2]
[346488584,1735007441104,-3345.48,0.00013698,2]
[346488586,1735007441114,-3345.48,0.00013698,2]
[346488588,1735007441123,-500.0,0.00013698,2]
[346488590,1735007441132,-3345.48,0.00013698,2]
[346488592,1735007441141,-500.0,0.00013698,2]
[346488594,1735007441151,-3345.48,0.00013698,2]
[346488596,1735007441160,-3345.48,0.00013698,2]
[346488598,1735007441169,-3345.48,0.00013698,2]
[346488600,1735007441178,-500.0,0.00013698,2]
[346488602,1735007441187,-3345.48,0.00013698,2]
[346488604,1735007441196,-3345.48,0.00013698,2]
[346488606,1735007441205,-500.0,0.00013698,2]
[346488608,1735007441215,-3345.48,0.00013698,2]
[346488610,1735007441225,-3345.48,0.00013698,2]
[346488612,1735007441235,-3345.48,0.00013698,2]
[346488614,1735007441244,-229.92167482,0.00013698,2]
[346488616,1735007441254,-3345.48,0.00013698,2]
[346488618,1735007441263,-500.86704458,0.00013698,2]
[346488620,1735007441272,-3345.48,0.00013698,2]
[346488622,1735007441281,-3345.48,0.00013698,2]
[346488624,1735007441290,-3345.48,0.00013698,2]
[346488626,1735007441299,-500.0,0.00013698,2]
[346488628,1735007441309,-3345.48,0.00013698,2]
[346488630,1735007441318,-500.0,0.00013698,2]
[346488632,1735007441327,-3345.48,0.00013698,2]
[346488634,1735007441337,-3345.55800589,0.00013698,2]
[346488636,1735007441346,-500.0,0.00013698,2]
[346488638,1735007441355,-500.0,0.00013698,2]
[346488640,1735007441364,-500.0,0.00013698,2]
[346488642,1735007441374,-500.0,0.00013698,2]
[346488643,1735007441383,-500.0,0.00013698,2]
[346488645,1735007441393,-500.0,0.00013698,2]
[346488647,1735007441405,-500.0,0.00013698,2]
[346488649,1735007441414,-500.0,0.00013698,2]
[346488651,1735007441424,-500.0,0.00013698,2]
[346488653,1735007441433,-500.69563768,0.00013698,2]
[346488655,1735007441443,-500.0,0.00013698,2]
[346488657,1735007441452,-500.0,0.00013698,2]
[346488659,1735007441461,-500.0,0.00013698,2]
[346488661,1735007441471,-500.0,0.00013698,2]
[346488663,1735007441485,-500.0,0.00013698,2]
[346488666,1735007441495,-500.0,0.00013698,2]
[346488668,1735007441505,-524.09182549,0.00013698,2]
[346488670,1735007441514,-500.0,0.00013698,2]
[346488672,1735007441524,-500.0,0.00013698,2]
[346488674,1735007441533,-500.0,0.00013698,2]
[346488676,1735007441542,-500.0,0.00013698,2]
[346488678,1735007441552,-500.0,0.00013698,2]
[346488680,1735007441561,-500.0,0.00013698,2]
[346488682,1735007441570,-500.0,0.00013698,2]
[346488684,1735007441579,-500.0,0.00013698,2]
[346488686,1735007441588,-500.0,0.00013698,2]
[346488688,1735007441597,-500.0,0.00013698,2]
[346488690,1735007441606,-645.76,0.00013698,2]
[346488692,1735007441615,-645.76,0.00013698,2]
[346488694,1735007441624,-645.76,0.00013698,2]
[346488696,1735007441634,-645.76,0.00013698,2]
[346488698,1735007441643,-645.76,0.00013698,2]
[346488700,1735007441652,-645.76,0.00013698,2]
[346488702,1735007441662,-645.76,0.00013698,2]
[346488704,1735007441671,-645.76,0.00013698,2]
[346488706,1735007441680,-645.76,0.00013698,2]
[346488708,1735007441689,-540.13247403,0.00013698,2]
[346488710,1735007441699,-645.76,0.00013698,2]
[346488712,1735007441708,-645.76,0.00013698,2]
[346488714,1735007441717,-645.76,0.00013698,2]
[346488716,1735007441728,-645.76,0.00013698,2]
[346488718,1735007441737,-645.76,0.00013698,2]
[346488720,1735007441746,-645.76,0.00013698,2]
[346488722,1735007441755,-645.76,0.00013698,2]
[346488724,1735007441765,-645.76,0.00013698,2]
[346488726,1735007441774,-500.0,0.00013698,2]
[346488728,1735007441784,-645.76,0.00013698,2]
[346488729,1735007441792,-645.76,0.00013698,2]
[346488731,1735007441802,-645.76,0.00013698,2]
[346488734,1735007441811,-645.76,0.00013698,2]
[346488736,1735007441820,-645.76,0.00013698,2]
[346488738,1735007441829,-645.76,0.00013698,2]
[346488740,1735007441838,-645.83462956,0.00013698,2]
[346488742,1735007441847,-500.0,0.00013698,2]
[346488744,1735007441856,-500.0,0.00013698,2]
[346488746,1735007441865,-500.0,0.00013698,2]
[346488748,1735007441874,-501.99707997,0.00013698,2]
[346488750,1735007441883,-500.0,0.00013698,2]
[346488752,1735007441892,-500.0,0.00013698,2]
[346488754,1735007441901,-500.0,0.00013698,2]
[346488756,1735007441911,-500.0,0.00013698,2]
[346488758,1735007441920,-500.0,0.00013698,2]
[346488760,1735007441928,-500.0,0.00013698,2]
[346488762,1735007441937,-500.90269436,0.00013698,2]
[346488764,1735007441946,-500.0,0.00013698,2]
[346488766,1735007441955,-500.0,0.00013698,2]
[346488768,1735007441964,-500.0,0.00013698,2]
[346488770,1735007441974,-281.1072826,0.00013698,2]
[346488772,1735007441982,-500.0,0.00013698,2]
[346488774,1735007441991,-607.44,0.00013698,2]
[346488776,1735007442001,-607.44,0.00013698,2]
[346488778,1735007442010,-607.44,0.00013698,2]
[346488780,1735007442019,-607.44,0.00013698,2]
[346488782,1735007442028,-607.44,0.00013698,2]
[346488796,1735007442146,-500.0,0.00013698,2]
[346488798,1735007442156,-607.44,0.00013698,2]
[346488800,1735007442165,-607.44,0.00013698,2]
[346488802,1735007442174,-500.0,0.00013698,2]
[346488804,1735007442183,-607.44,0.00013698,2]
[346488806,1735007442192,-500.0,0.00013698,2]
[346488808,1735007442202,-607.44,0.00013698,2]
[346488810,1735007442211,-607.44,0.00013698,2]
[346488812,1735007442220,-607.44,0.00013698,2]
[346488814,1735007442230,-607.44,0.00013698,2]
[346488816,1735007442240,-607.44,0.00013698,2]
[346488818,1735007442249,-607.44,0.00013698,2]
[346488820,1735007442258,-607.44,0.00013698,2]
[346488822,1735007442267,-607.44,0.00013698,2]
[346488824,1735007442276,-500.0,0.00013698,2]
[346488826,1735007442285,-607.44,0.00013698,2]
[346488828,1735007442294,-607.44,0.00013698,2]
[346488830,1735007442303,-500.0,0.00013698,2]